Cogmind - Beta 17 @@@ ROGUE MODE // 2026.06.30 @ 20:04:38 Player: kite Result: Escaped! Performance ------------- Evolutions (9) 4500 Regions Visited (28) 5600 Robots Destroyed (261) 1305 Value Destroyed (10563) 10563 Prototype IDs (53) 1060 Alien Tech Used (1) 200 Bonus (8595) 8595 TOTAL SCORE: 31823 Bonus ------- Pacifist 200 High Alert Combat Kills 143 Follower Combat Kills 1477 Entered Garrisons 200 Entered DSFs 500 Network Hubs Disabled 200 Aligned with FarCom 300 Met Data Miner 300 Acquired ECA 300 Built Enhanced Grunts 300 Met R17 at Cetus 500 Met R17 at Research 2000 Win 3000 Friendly Fire -825 Cogmind --------- Core Integrity 1559/1600 Matter 122/300 Energy 555/590 System Corruption 0% Temperature Cool (11) Movement Walking (116) Location To Epsilon Eridani Parts ------- > --- POWER (2) -------- Graviton Reactor Quantum Reactor > --- PROPULSION (6) --- Enhanced Biometal Leg Centrium Leg Centrium Leg Centrium Leg Centrium Leg Centrium Leg > --- UTILITY (12) ----- Advanced Terrain Scanner Advanced Melee Analysis Suite Experimental Core Analyzer Advanced Transmission Jammer Improved Reaction Control System Centrium Medium Armor Plating Graphene Brace Advanced EM Shield Advanced Force Field Advanced Force Field Advanced Corruption Screen Advanced Corruption Screen > --- WEAPON (6) ------- Plasma Lance Plasma Lance Enhanced Force Lance Enhanced Force Lance Enhanced Force Lance Enhanced Force Lance > --- INVENTORY (5) ---- Improved Thunder Leg Improved Thunder Leg Improved Thunder Leg High-capacity Storage Unit Actuator Array Peak State ------------ > --- POWER ------------ Graviton Reactor Quantum Reactor > --- PROPULSION ------- Enhanced Biometal Leg Centrium Leg Centrium Leg Centrium Leg Centrium Leg Centrium Leg > --- UTILITY ---------- High-capacity Storage Unit Advanced Terrain Scanner Advanced Melee Analysis Suite Experimental Core Analyzer Advanced Transmission Jammer Centrium Medium Armor Plating Graphene Brace Advanced EM Shield Advanced Force Field Advanced Force Field Advanced Corruption Screen Advanced Corruption Screen > --- WEAPON ----------- Plasma Lance Plasma Lance Enhanced Force Lance Enhanced Force Lance Enhanced Force Lance Enhanced Force Lance > --- INVENTORY -------- Graviton Reactor Enhanced Armored Leg Biometal Leg Improved Thunder Leg Improved Thunder Leg Improved Thunder Leg Improved Thunder Leg Improved Thunder Leg Actuator Array Actuator Array Improved Reaction Control System Thunder Hammer Thunder Hammer Ionic Axe Ionic Axe [Rating: 214] Favorites ----------- Power Light Angular Momentum Engine Engine Light Angular Momentum Engine Power Core Fission Core Reactor Graviton Reactor Propulsion Carbon-fiber Leg Treads Light Treads Leg Carbon-fiber Leg Wheel Wheel Flight Unit Flight Unit Utility High-capacity Storage Unit Device Microactuators Storage High-capacity Storage Unit Processor Advanced Melee Analysis Suite Hackware Experimental Hacking Suite Protection Centrium Medium Armor Plating Weapon Great Axe Impact Weapon Thunder Hammer Slashing Weapon Great Axe Piercing Weapon Plasma Lance Build | -11 -10 -10 -9 -9 -9 -8 -8 -8 -7 -7 -7 -7 -6 -6 -6 -6 -6 -6 -5 -5 -5 -5 -5 -4 -3 -2 -2 -1 ------- Run | Yrd Mat Min Mat Min Exi Min Mat Gar Fac Low Low Dat Pro Fac Was Fac Low Low Fac Ext Cet Arc Hub Fac Res Res DSF Acc Slots Evolved 18 | . . . 2 . . . 2 . 2 . . . . 2 . . . . 2 . . . . 2 2 2 . 2 Power . | . . . . . . . . . . . . . . . . . . . . . . . . . . . . . Propulsion 4 | . . . 2 . . . 1 . 1 . . . . . . . . . . . . . . . . . . . Utility 10 | . . . . . . . . . 1 . . . . 2 . . . . 1 . . . . 1 1 2 . 2 Weapon 4 | . . . . . . . 1 . . . . . . . . . . . 1 . . . . 1 1 . . . Parts Attached 245 | 3 3 . 19 1 . . 5 13 17 2 4 . 7 27 1 15 1 1 32 7 11 7 4 16 20 . 9 20 Power 29 | 1 . . 4 . . . . 1 1 1 1 . 2 3 . 1 . . 5 . 3 1 . 1 3 . . 1 Engine 15 | 1 . . 4 . . . . 1 1 . . . 1 3 . 1 . . 2 . 1 . . . . . . . Core 5 | . . . . . . . . . . 1 1 . . . . . . . 2 . 1 . . . . . . . Reactor 9 | . . . . . . . . . . . . . 1 . . . . . 1 . 1 1 . 1 3 . . 1 Propulsion 104 | 2 2 . 7 . . . . 10 8 1 1 . 5 13 . 7 . 1 13 4 4 . 2 5 8 . 5 6 Treads 11 | 2 1 . 4 . . . . 2 . . . . 2 . . . . . . . . . . . . . . . Leg 71 | . . . 1 . . . . 8 8 1 1 . 3 . . 6 . 1 8 4 4 . 2 5 8 . 5 6 Wheel 19 | . . . . . . . . . . . . . . 13 . 1 . . 5 . . . . . . . . . Hover . | . . . . . . . . . . . . . . . . . . . . . . . . . . . . . Flight 3 | . 1 . 2 . . . . . . . . . . . . . . . . . . . . . . . . . Utility 82 | . 1 . 4 1 . . . 2 6 . 1 . . 11 1 4 1 . 10 1 4 6 2 7 5 . 4 11 Device 39 | . 1 . 1 . . . . 1 4 . . . . 6 1 . . . 4 . . 4 . 6 3 . 4 4 Storage 2 | . . . 1 . . . . . . . . . . . . . . . 1 . . . . . . . . . Processor 15 | . . . 1 . . . . . 1 . . . . 3 . 1 1 . 2 . 1 . . . 1 . . 4 Hackware 12 | . . . . . . . . 1 . . . . . . . 3 . . . . . 1 2 1 1 . . 3 Protection 14 | . . . 1 1 . . . . 1 . 1 . . 2 . . . . 3 1 3 1 . . . . . . Artifact . | . . . . . . . . . . . . . . . . . . . . . . . . . . . . . Weapon 30 | . . . 4 . . . 5 . 2 . 1 . . . . 3 . . 4 2 . . . 3 4 . . 2 Energy Gun . | . . . . . . . . . . . . . . . . . . . . . . . . . . . . . Energy Cannon . | . . . . . . . . . . . . . . . . . . . . . . . . . . . . . Ballistic Gun . | . . . . . . . . . . . . . . . . . . . . . . . . . . . . . Ballistic Cannon . | . . . . . . . . . . . . . . . . . . . . . . . . . . . . . Launcher . | . . . . . . . . . . . . . . . . . . . . . . . . . . . . . Special Weapon . | . . . . . . . . . . . . . . . . . . . . . . . . . . . . . Impact Weapon 8 | . . . 1 . . . 1 . . . . . . . . 1 . . 1 1 . . . 3 . . . . Slashing Weapon 16 | . . . 3 . . . 4 . 2 . 1 . . . . 1 . . 3 1 . . . . 1 . . . Piercing Weapon 6 | . . . . . . . . . . . . . . . . 1 . . . . . . . . 3 . . 2 Special Melee Weapon . | . . . . . . . . . . . . . . . . . . . . . . . . . . . . . Unidentified Prototypes 20 | . . . 1 . . . . . 3 1 . . . . . 1 . . 4 . 2 . . 5 3 . . . Corrupted Parts 1 | . . . . . . . . . . . . . . . . 1 . . . . . . . . . . . . System Corruption 6 | . . . . . . . . . . . . . . . . 6 . . . . . . . . . . . . Parts Lost 67 | . . . 4 1 . . . 6 5 . 5 . 12 . . 1 . 1 19 1 5 . . 2 1 . 2 2 Power 10 | . . . 1 . . . . 1 . . 1 . 3 . . . . . 3 . 1 . . . . . . . Propulsion 32 | . . . 2 . . . . 4 3 . 3 . 7 . . . . 1 9 . 2 . . . . . 1 . Utility 18 | . . . 1 1 . . . 1 . . . . 2 . . . . . 4 1 2 . . 2 1 . 1 2 Weapon 7 | . . . . . . . . . 2 . 1 . . . . 1 . . 3 . . . . . . . . . Highest Loss Streak 11 | . . . 3 1 . . . 3 2 . 5 . 4 . . 1 . 1 11 1 4 . . 2 1 . 1 1 To Critical Strikes 3 | . . . . . . . . . . . . . 1 . . . . . 1 . 1 . . . . . . . Average Backups 16 | 1 4 5 8 15 16 17 17 19 18 16 13 14 14 15 17 18 16 16 17 19 18 19 19 19 19 20 19 19 Power . | . 1 1 . 1 1 1 1 1 1 . . 1 . . . . 1 1 2 1 1 1 . . . . . 1 Propulsion 3 | . 2 3 2 5 5 5 4 4 4 3 . . . 1 1 1 1 . 3 5 4 3 4 4 5 5 4 5 Utility 7 | . 1 1 . . . 1 3 4 7 9 9 10 9 10 13 11 10 11 8 8 9 10 12 10 10 11 10 8 Weapon 4 | . . . 4 9 10 10 9 7 5 3 2 2 2 2 2 3 3 3 1 4 4 3 3 3 3 4 4 4 Tool/Special . | . . . . . . . . . . . . . . . . . . . . . . . . . . . . . Unused Backups 58 | . 3 . 1 . . . 3 5 6 . . . . 1 . 4 1 . 4 6 1 2 1 1 9 . 1 9 Power 9 | . . . . . . . . 1 1 . . . . . . . . . 3 . 1 1 . . 1 . . 1 Propulsion 17 | . 2 . . . . . . . . . . . . 1 . 1 . . 1 1 . . 1 . 4 . . 6 Utility 19 | . 1 . 1 . . . . . 3 . . . . . . 3 1 . . 2 . 1 . 1 3 . 1 2 Weapon 13 | . . . . . . . 3 4 2 . . . . . . . . . . 3 . . . . 1 . . . Tool/Special . | . . . . . . . . . . . . . . . . . . . . . . . . . . . . . Average Slot Usage (%) 93 | . 43 42 84 96 100 100 99 98 99 99 97 100 82 90 100 97 100 99 89 88 87 85 87 89 95 91 99 99 Engine 6 | . 4 . 7 11 11 11 9 8 7 7 7 7 6 9 12 12 12 12 5 5 3 . . . . . . . Reactor 2 | . . . . . . . . . . . . . . . . . . . 3 5 1 9 11 10 9 8 8 7 Treads 8 | . 28 28 34 44 44 44 45 24 . . . . 2 6 . . . . . . . . . . . . . . Leg 22 | . . . . . . . . 19 45 45 41 42 33 4 . 16 37 36 21 22 21 22 22 20 22 25 24 22 Wheel 3 | . . . . . . . . . . . . . . 20 37 18 . . 2 . . . . . . . . . Device 7 | . 10 14 10 1 . . . 8 7 7 4 . 1 8 12 5 5 6 9 11 4 5 3 9 12 8 15 20 Storage 6 | . . . 6 11 11 11 9 9 7 7 7 7 7 6 6 6 6 6 5 5 5 5 5 5 4 4 4 3 Processor 8 | . . . . . . . . . 6 7 7 7 7 9 12 8 17 17 13 11 15 16 16 12 9 12 12 13 Hackware 1 | . . . . . . . . . . . . . . . . 9 . . . . . . 4 2 4 4 4 2 Protection 3 | . . . 2 5 11 11 9 . . . 2 7 4 4 . 1 . . 3 5 6 2 1 5 3 4 4 2 Impact Weapon 1 | . . . 5 . . . 6 . . . . . . . . . . . 2 . 5 5 5 10 5 4 4 2 Slashing Weapon 15 | . . . 11 22 22 22 20 27 22 22 20 21 14 18 18 16 12 12 13 15 11 11 10 10 11 4 4 2 Piercing Weapon 3 | . . . . . . . . . . . . . . . . 1 6 6 5 5 5 5 5 5 8 16 16 15 Peak Build Rating 214 | 3 4 3 20 20 21 21 30 34 48 47 51 51 52 56 54 78 74 75 106 104 111 113 118 143 173 173 185 214 Average Rating 72 | 2 3 3 13 19 20 21 25 32 41 44 48 51 42 45 53 62 71 71 87 101 107 108 114 133 163 173 181 198 On Entrance 66 | . 3 3 3 20 20 21 21 30 33 39 47 51 51 34 53 53 75 72 75 106 103 111 113 117 141 173 173 184 Avg Prop Armor Cover (%) 17 | 34 36 39 4 . . . . 10 . . . . 20 15 . . . . 12 . . . . . . . . . Naked Turns . | . . . . . . . . . . . . . . . . . . . . . . . . . . . . . Heaviest Build 134 | 3 4 1 56 59 59 59 65 65 66 70 81 81 82 77 70 76 76 71 92 92 97 97 97 111 121 111 118 134 Greatest Support 180 | 40 20 3 86 86 86 86 106 106 73 70 73 73 85 78 60 95 95 98 106 105 113 113 126 126 144 136 154 180 Greatest Overweight (x) 6 | . 1 . . . . . . 2 1 . 1 1 3 6 1 1 . . 6 . . . . . 1 . 1 1 Average Overweight (x) . | . . . . . . . . . . . . 1 . . 1 . . . . . . . . . . . . . Largest Inventory Capacity 20 | 5 5 5 20 20 20 20 20 20 20 20 20 20 20 20 20 20 20 20 20 20 20 20 20 20 20 20 20 20 Average Capacity 19 | 5 5 5 13 20 20 20 20 20 20 20 20 20 20 20 20 20 20 20 20 20 20 20 20 20 20 20 20 19 Most Carried 20 | 5 5 5 15 16 17 17 20 20 20 18 17 15 18 20 20 20 17 17 20 20 20 20 20 20 20 20 20 20 Average Carried 17 | 1 4 5 8 15 16 17 17 19 19 17 14 15 15 16 19 18 16 16 17 19 18 19 19 19 19 20 19 19 Final Capacity 20 | 5 5 5 20 20 20 20 20 20 20 20 20 20 20 20 20 20 20 20 20 20 20 20 20 20 20 20 20 5 Final Carried 20 | 5 5 5 15 16 17 17 20 18 19 17 15 15 13 20 20 20 17 15 20 20 20 20 19 20 20 20 20 5 Class Distribution -------------------- 48% | Scavenger-Gladiator 30% | Gladiator 18% | Mutant Dominant Class ---------------- Mutant | -10/Materials Mutant | -10/Mines Mutant | -9/Materials Mutant | -9/Mines Mutant | -9/Exiles Mutant | -8/Mines Mutant | -8/Materials Gladiator | -8/Garrison Scavenger-Gladiator | -7/Factory Gladiator | -7/Lower Caves Gladiator | -7/Lower Caves Gladiator | -7/Data Miner Gladiator | -6/Proximity Caves Scavenger-Gladiator | -6/Factory Scavenger-Gladiator | -6/Waste Scavenger-Gladiator | -6/Factory Scavenger-Gladiator | -6/Lower Caves Scavenger-Gladiator | -6/Lower Caves Scavenger-Gladiator | -5/Factory Scavenger-Gladiator | -5/Extension Scavenger-Gladiator | -5/Cetus Scavenger-Gladiator | -5/Archives Scavenger-Gladiator | -5/Hub_04(d) Scavenger-Gladiator | -4/Factory Gladiator | -3/Research Gladiator | -2/Research Gladiator | -2/DSF Scavenger-Gladiator | -1/Access Resources | -11 -10 -10 -9 -9 -9 -8 -8 -8 -7 -7 -7 -7 -6 -6 -6 -6 -6 -6 -5 -5 -5 -5 -5 -4 -3 -2 -2 -1 ----------- Run | Yrd Mat Min Mat Min Exi Min Mat Gar Fac Low Low Dat Pro Fac Was Fac Low Low Fac Ext Cet Arc Hub Fac Res Res DSF Acc Matter Collected 4779 | 98 140 . 252 42 25 11 54 176 273 50 76 . 120 333 . 530 144 5 715 242 213 95 39 348 399 . 160 239 Remotely . | . . . . . . . . . . . . . . . . . . . . . . . . . . . . . Salvage Created 13496 | . . . 452 514 . 55 54 733 1036 227 192 . 445 1017 . 1186 116 . 2186 1110 65 304 162 1070 1275 . 231 1066 Parts 622 | . . . 16 17 . 9 5 39 62 17 3 . 10 44 . 54 7 . 103 41 1 27 10 45 35 . 21 56 Haulers Intercepted 17 | . . . 3 . . . . . 3 . . . . 2 . 1 . . 2 1 . . . 2 3 . . . Recyclers Shooed 4 | . . . . 1 . . . . 1 . . . . . . . . . 1 . . . . . . . . 1 Parts Field Recycled . | . . . . . . . . . . . . . . . . . . . . . . . . . . . . . Retrieved Matter . | . . . . . . . . . . . . . . . . . . . . . . . . . . . . . Parts Self-Destructed 36 | . . . . . . . . . . 13 3 . 16 . . . 4 . . . . . . . . . . . Prevented 1 | . . . . . . . . . . 1 . . . . . . . . . . . . . . . . . . Parts Restored . | . . . . . . . . . . . . . . . . . . . . . . . . . . . . . Kills | -11 -10 -10 -9 -9 -9 -8 -8 -8 -7 -7 -7 -7 -6 -6 -6 -6 -6 -6 -5 -5 -5 -5 -5 -4 -3 -2 -2 -1 ------- Run | Yrd Mat Min Mat Min Exi Min Mat Gar Fac Low Low Dat Pro Fac Was Fac Low Low Fac Ext Cet Arc Hub Fac Res Res DSF Acc Combat Hostiles Destroyed 156 | . . . 5 5 . 3 . 19 15 2 3 . 9 3 . 11 2 . 25 11 1 . . 12 15 . 3 12 Melee 147 | . . . 2 5 . 3 . 19 15 2 3 . 9 3 . 11 2 . 24 11 1 . . 10 13 . 3 11 Classes Destroyed 20 | . . . 8 1 . . . 2 2 2 . . 1 . . . . . 3 . . . . . . . 1 . Worker 26 | . . . 1 2 . 1 . . 3 . . . . 5 . 6 . . 2 . . . 4 1 . . . 1 Builder 19 | . . . 1 . . . . . 1 . . . . . . 2 . . 4 2 . . 3 2 1 . . 3 Tunneler 3 | . . . . 2 . . . . . . . . . . . . . . . . . . 1 . . . . . Hauler 17 | . . . 3 . . . . . 3 . . . . 2 . 1 . . 2 1 . . . 2 3 . . . Recycler 19 | . . . 2 3 . . 1 . . . . . . 4 . 3 . . 2 1 . . . 1 2 . . . Minesweeper 1 | . . . . . . . . . . 1 . . . . . . . . . . . . . . . . . . Mechanic 1 | . . . . . . . . . 1 . . . . . . . . . . . . . . . . . . . Operator 13 | . . . . . . . . . . . . . . . . . . . 1 2 . 9 . . . . . 1 Drone 1 | . . . . . . . . . . . . . 1 . . . . . . . . . . . . . . . Watcher 6 | . . . . . . . . . . . . . . . . . . . 1 . . . . 2 . . . 3 Swarmer 33 | . . . 2 . . 3 . 6 . 2 3 . 2 . . 1 2 . 2 . . . . 3 7 . . . Cutter 2 | . . . . . . . . 2 . . . . . . . . . . . . . . . . . . . . Grunt 48 | . . . 1 4 . . . 8 6 . . . 3 . . 6 . . 10 4 . . . . 6 . . . Brawler 4 | . . . 1 1 . . . . . . . . 1 . . 1 . . . . . . . . . . . . Duelist 3 | . . . . . . . . . . . . . . . . . . . 2 1 . . . . . . . . Sentry 21 | . . . 1 . . . . 2 4 . . . 1 . . . . . 4 5 . . . 3 1 . . . Hunter 8 | . . . . . . . . 1 . . . . 1 . . . . . . 1 . . . 3 . . . 2 Programmer 33 | . . . . . . . . . 5 . . . . 3 . 3 . . 7 . . . . 3 1 . 2 9 Heavy 2 | . . . . . . . . . . . . . . . . . . . . . . . . . . . 1 1 Cetus Guard 1 | . . . . . . . . . . . . . . . . . . . . . 1 . . . . . . . Samaritan 4 | . . . . . . . . . . 3 . . . . . . 1 . . . . . . . . . . . Best Kill Streak 8 | . . . 2 5 . 3 1 3 5 2 3 . 3 4 . 3 2 . 8 4 1 4 6 6 4 . 2 4 Combat Bots Only 8 | . . . 2 2 . 3 . 3 5 2 3 . 3 1 . 2 2 . 8 3 1 . . 6 4 . 2 3 Max Kills in Single Turn 6 | . . . 1 1 . 1 1 1 1 1 1 . 1 1 . 1 1 . 1 1 1 1 6 1 1 . 1 1 Gunslinging . | . . . . . . . . . . . . . . . . . . . . . . . . . . . . . Exploded . | . . . . . . . . . . . . . . . . . . . . . . . . . . . . . Melee 1 | . . . 1 1 . 1 . 1 1 1 1 . 1 1 . 1 1 . 1 1 1 . . 1 1 . 1 1 Uniques/NPCs Destroyed . | . . . . . . . . . . . . . . . . . . . . . . . . . . . . . Combat | -11 -10 -10 -9 -9 -9 -8 -8 -8 -7 -7 -7 -7 -6 -6 -6 -6 -6 -6 -5 -5 -5 -5 -5 -4 -3 -2 -2 -1 -------- Run | Yrd Mat Min Mat Min Exi Min Mat Gar Fac Low Low Dat Pro Fac Was Fac Low Low Fac Ext Cet Arc Hub Fac Res Res DSF Acc Hostile Shots Fired 1296 | . 9 . 48 44 . 18 2 107 159 7 49 . 131 12 . 33 23 9 120 66 36 5 . 148 112 . 28 130 Missed 416 | . 5 . 12 13 . 2 1 26 66 4 11 . 40 3 . 9 5 5 17 16 13 1 . 50 46 . 15 56 Hits 880 | . 4 . 36 31 . 16 1 81 93 3 38 . 91 9 . 24 18 4 103 50 23 4 . 98 66 . 13 74 Melee 30 | . . . . . . . . 2 . . . . 4 . . 3 . . 21 . . . . . . . . . Projectile 850 | . 4 . 36 31 . 16 1 79 93 3 38 . 87 9 . 21 18 4 82 50 23 4 . 98 66 . 13 74 AOE 1 | . . . . . . . . 1 . . . . . . . . . . . . . . . . . . . . Critical Strikes 43 | . . . 2 . . . . 2 2 . 2 . 3 1 . 1 . . 10 3 5 . . 1 1 . 1 9 Part Disruptions 3 | . . . . . . . . . . . . . . . . . . . . . . . . . 1 . . 2 Damage Taken 13918 | . 40 . 424 425 . 127 23 938 1023 40 565 . 1214 74 . 371 268 54 2263 1044 491 163 108 1174 1280 . 890 919 Core 1659 | . 17 . 107 58 . 16 . 83 166 . 112 . 190 . . 100 13 . 370 84 . 58 54 105 48 . 37 41 Absorbed by Shields 1875 | . . . . 30 . . . . . . . . . . . . . . . 224 168 . . 373 414 . . 666 Ignored by Resistances 1176 | . . . . . . . . . 38 . . . . 63 . 75 . . 197 . . . . 209 47 . 23 524 Regen/Repaired (Parts) 185 | . . . . . . . . . 46 . . . . 33 . 61 . . . . . . . . 45 . . . Core Remaining (%) 79 | 100 . 93 . . . 54 . 84 . . . . 33 . . . . 86 . . . . 43 90 96 . 97 97 Volleys Fired . | . . . . . . . . . . . . . . . . . . . . . . . . . . . . . Largest . | . . . . . . . . . . . . . . . . . . . . . . . . . . . . . Hottest . | . . . . . . . . . . . . . . . . . . . . . . . . . . . . . Shots Fired . | . . . . . . . . . . . . . . . . . . . . . . . . . . . . . Gun . | . . . . . . . . . . . . . . . . . . . . . . . . . . . . . Cannon . | . . . . . . . . . . . . . . . . . . . . . . . . . . . . . Launcher . | . . . . . . . . . . . . . . . . . . . . . . . . . . . . . Special . | . . . . . . . . . . . . . . . . . . . . . . . . . . . . . Kinetic . | . . . . . . . . . . . . . . . . . . . . . . . . . . . . . Thermal . | . . . . . . . . . . . . . . . . . . . . . . . . . . . . . Explosive . | . . . . . . . . . . . . . . . . . . . . . . . . . . . . . Electromagnetic . | . . . . . . . . . . . . . . . . . . . . . . . . . . . . . Robot Hit Streak . | . . . . . . . . . . . . . . . . . . . . . . . . . . . . . Robot Miss Streak . | . . . . . . . . . . . . . . . . . . . . . . . . . . . . . Penetration Max . | . . . . . . . . . . . . . . . . . . . . . . . . . . . . . Secondary Targets . | . . . . . . . . . . . . . . . . . . . . . . . . . . . . . Shots Hit Robots 665 | . . . 25 33 . 6 1 39 59 7 13 . 37 18 . 40 5 . 96 56 2 16 3 49 63 . 28 69 Core Hits 264 | . . . 7 11 . 4 1 17 21 5 2 . 15 12 . 22 1 . 44 21 1 10 5 14 18 . 9 24 Critical Kills 4 | . . . . . . . . . . . . . . . . . . . 1 . . 1 . 1 . . . 1 Critical Parts Destroyed 18 | . . . 4 . . . . . . . . . . . . . . . 1 . . . . 7 5 . . 1 Critical Strikes 74 | . . . 6 2 . . . 4 5 . 2 . 9 2 . 3 . . 6 3 . 2 . 13 10 . . 7 Smash 24 | . . . 5 . . . . . . . . . . . . . . . 3 . . 1 . 8 5 . . 2 Sever 36 | . . . 1 2 . . . 4 5 . 2 . 9 2 . 2 . . 3 2 . . . 1 2 . . 1 Impale 14 | . . . . . . . . . . . . . . . . 1 . . . 1 . 1 . 4 3 . . 4 Melee Attacks 1128 | . . . 30 38 . 8 1 87 102 10 21 . 40 54 2 111 8 . 151 76 2 20 10 94 103 . 35 125 Impact 127 | . . . 20 . . . . . . . . . . . . . . . 12 . . 4 . 34 31 . 3 23 Slashing 614 | . . . 10 38 . 8 1 87 102 10 21 . 40 54 2 89 1 . 48 26 . 4 9 12 30 . 6 16 Piercing 387 | . . . . . . . . . . . . . . . . 22 7 . 91 50 2 12 1 48 42 . 26 86 Sneak Attacks 130 | . . . 10 7 . 2 1 2 15 4 . . . 11 . 14 1 . 19 5 1 12 3 10 10 . . 3 Combat Hostiles 7 | . . . . . . . . 1 2 . . . . . . 1 . . 2 1 . . . . . . . . Follow-up Attacks 221 | . . . 1 5 . . . 10 16 1 3 . 9 1 . 9 1 . 34 19 . 3 1 21 29 . 16 42 Damage Inflicted 34737 | . . . 1204 1347 . 284 65 1542 2982 434 569 . 1349 1248 . 2212 301 . 5015 2609 135 1279 1089 2901 3847 . 812 3513 Guns . | . . . . . . . . . . . . . . . . . . . . . . . . . . . . . Cannons . | . . . . . . . . . . . . . . . . . . . . . . . . . . . . . Explosions 769 | . . . . . . . . . . . . . . . . . . . . . . . 769 . . . . . Melee 33851 | . . . 1204 1335 . 284 65 1542 2982 434 569 . 1349 1248 . 2212 301 . 5015 2600 135 1279 320 2862 3834 . 812 3469 Ramming 117 | . . . . 12 . . . . . . . . . . . . . . . 9 . . . 39 13 . . 44 Kinetic . | . . . . . . . . . . . . . . . . . . . . . . . . . . . . . Thermal . | . . . . . . . . . . . . . . . . . . . . . . . . . . . . . Explosive . | . . . . . . . . . . . . . . . . . . . . . . . . . . . . . Electromagnetic 769 | . . . . . . . . . . . . . . . . . . . . . . . 769 . . . . . Impact 5022 | . . . 676 . . . . . . . . . . . . . . . 414 . . 177 . 1253 1764 . 61 677 Slashing 16057 | . . . 528 1335 . 284 65 1542 2982 434 569 . 1349 1248 . 1462 35 . 1231 773 . 238 320 190 962 . 134 376 Piercing 12772 | . . . . . . . . . . . . . . . . 750 266 . 3370 1827 135 864 . 1419 1108 . 617 2416 Highest Corruption 25 | . . . 5 5 5 5 . . 1 1 1 1 2 1 19 25 25 25 5 5 6 6 2 5 1 . 1 . Average Corruption 6 | . . . 5 5 5 5 . . 1 1 1 1 1 1 11 20 25 25 4 5 5 4 2 3 1 . 1 . Corruption Purged 11 | . . . . . . . . . . . . . . . 3 2 . . . . . 6 . . . . . . Corruption Blocked 7 | . . . . . . . . . . . . . . . . . . . . . . . . . . . . 7 Effects 239 | . . . 6 20 11 4 . . 4 1 7 1 6 . 8 63 28 3 20 26 11 5 . 6 9 . . . Message Errors 72 | . . . 5 4 1 . . . 3 1 2 . 4 . 4 20 7 1 6 6 4 1 . . 3 . . . Matter Fused 69 | . . . . 6 4 4 . . 1 . 3 1 1 . 1 16 14 . 3 7 3 1 . 3 1 . . . Heat Flow Errors 26 | . . . . 4 2 . . . . . 1 . . . . 5 2 . 2 6 1 . . 1 2 . . . Energy Discharges 21 | . . . . 1 . . . . . . . . 1 . 1 3 2 1 5 4 . 1 . 1 1 . . . Parts Rejected 2 | . . . . . . . . . . . . . . . . . . . . . . . . 1 1 . . . Parts Fused 5 | . . . 1 . . . . . . . . . . . . 3 . . 1 . . . . . . . . . Data Loss (minor) 24 | . . . . 3 3 . . . . . . . . . 1 11 2 . 2 . 1 1 . . . . . . Data Loss (major) 14 | . . . . 2 1 . . . . . 1 . . . . 5 1 1 . 2 1 . . . . . . . Alerts 5 | . . . . . . . . . . . . . . . . . . . 1 1 1 1 . . 1 . . . Misdirections 1 | . . . . . . . . . . . . . . . 1 . . . . . . . . . . . . . Overload Shots . | . . . . . . . . . . . . . . . . . . . . . . . . . . . . . Overflow Damage 4819 | . . . 268 86 . 49 . 39 166 39 129 . . 114 . 233 137 . 557 138 . 222 194 911 836 . 43 658 Projectiles . | . . . . . . . . . . . . . . . . . . . . . . . . . . . . . Explosions 43 | . . . . . . . . . . . . . . . . . . . . . . . 43 . . . . . Melee 4776 | . . . 268 86 . 49 . 39 166 39 129 . . 114 . 233 137 . 557 138 . 222 151 911 836 . 43 658 Knockbacks 22 | . . . 1 . . . . . . . . . . . . . . . 1 . . . . 8 7 . . 5 Impact 19 | . . . 1 . . . . . . . . . . . . . . . 1 . . . . 7 6 . . 4 Kinetic . | . . . . . . . . . . . . . . . . . . . . . . . . . . . . . Secondary 3 | . . . . . . . . . . . . . . . . . . . . . . . . 1 1 . . 1 Self-Inflicted Damage 109 | . . . . . . . . . . . . . . . . . . . . . . . 109 . . . . . Shots 1 | . . . . . . . . . . . . . . . . . . . . . . . 1 . . . . . Rammed 1 | . . . . 1 . . . . . . . . . . . . . . . . . . . . . . . . Targets Rammed 7 | . . . . 1 . . . . . . . . . . . . . . . 1 . . . 3 1 . . 1 Kicked 6 | . . . . . . . . . . . . . . . . . . . . 1 . . . 3 1 . . 1 Crushed . | . . . . . . . . . . . . . . . . . . . . . . . . . . . . . Highest Temperature 281 | . . . 11 281 275 . . 4 . . 268 . 11 . . 265 275 . 174 210 134 . . 137 266 . . . Average Temperature 107 | . . . 11 116 120 . . 4 . . 132 . 7 . . 120 123 . 80 85 70 . . 73 115 . . . Received Heat Transfer 2108 | . 18 . 135 229 . . . 234 300 . . . 258 . . 90 . 12 360 230 72 18 . 30 122 . . . Effects 1 | . . . . . 1 . . . . . . . . . . . . . . . . . . . . . . . Energy Bleed 1 | . . . . . 1 . . . . . . . . . . . . . . . . . . . . . . . Siege Activations . | . . . . . . . . . . . . . . . . . . . . . . . . . . . . . Martial Activations . | . . . . . . . . . . . . . . . . . . . . . . . . . . . . . Shielding Activations . | . . . . . . . . . . . . . . . . . . . . . . . . . . . . . Robots Disrupted . | . . . . . . . . . . . . . . . . . . . . . . . . . . . . . Combat Hostiles . | . . . . . . . . . . . . . . . . . . . . . . . . . . . . . Robots Corrupted 17 | . . . 4 . . . . . . . . . . . . . . . 1 . . . . 4 6 . . 2 Combat Hostiles 9 | . . . 3 . . . . . . . . . . . . . . . 1 . . . . 2 2 . . 1 Parts Fried 50 | . . . 8 . . . . . . . . . . . . . . . 3 2 . . 7 6 15 . 1 8 Impact Corruptions 54 | . . . 10 . . . . . . . . . . . . . . . 5 . . . . 14 17 . 1 7 Robots Melted . | . . . . . . . . . . . . . . . . . . . . . . . . . . . . . Combat Hostiles . | . . . . . . . . . . . . . . . . . . . . . . . . . . . . . Parts Melted 3 | . . . . . . . . . . . . . . . . . . . . 2 . . . . 1 . . . Heat Transferred . | . . . . . . . . . . . . . . . . . . . . . . . . . . . . . Parts Sabotaged 2 | . . . . . . . . . . . . . 2 . . . . . . . . . . . . . . . Parts Stolen . | . . . . . . . . . . . . . . . . . . . . . . . . . . . . . Parts Stripped . | . . . . . . . . . . . . . . . . . . . . . . . . . . . . . Power Chain Reactions . | . . . . . . . . . . . . . . . . . . . . . . . . . . . . . Alert | -11 -10 -10 -9 -9 -9 -8 -8 -8 -7 -7 -7 -7 -6 -6 -6 -6 -6 -6 -5 -5 -5 -5 -5 -4 -3 -2 -2 -1 ------- Run | Yrd Mat Min Mat Min Exi Min Mat Gar Fac Low Low Dat Pro Fac Was Fac Low Low Fac Ext Cet Arc Hub Fac Res Res DSF Acc Maximum Alert Level 3 | . . . . . . . . 3 2 . . . . 3 . 1 . . . . . . 1 1 . . . 1 Low Security (%) 69 | 100 100 100 100 100 . 100 100 23 . . . . . . 100 56 . . 100 100 100 100 87 99 100 100 100 87 Level 1 17 | . . . . . . . . 15 93 . . . . 1 . 43 . . . . . . 12 . . . . 12 Level 2 9 | . . . . . . . . 49 6 . . . . 65 . . . . . . . . . . . . . . Level 3 3 | . . . . . . . . 10 . . . . . 32 . . . . . . . . . . . . . . Level 4 . | . . . . . . . . . . . . . . . . . . . . . . . . . . . . . Level 5 . | . . . . . . . . . . . . . . . . . . . . . . . . . . . . . High Security . | . . . . . . . . . . . . . . . . . . . . . . . . . . . . . Max Security . | . . . . . . . . . . . . . . . . . . . . . . . . . . . . . Peak Influence 918 | . . . 133 73 . 70 11 817 432 . . . . 918 137 336 . . 152 161 122 185 352 200 182 45 86 219 Initial 918 | . . . . . . . 11 2 428 . . . . 918 137 34 . . . 65 10 25 29 167 87 45 33 51 Average 165 | . . . 33 17 . 17 2 431 290 . . . . 629 97 129 . . 49 60 58 143 58 123 117 45 55 70 Influence Increases 8492 | . . . 433 253 . 75 9 875 518 75 115 . 373 1116 2 664 40 . 780 574 337 250 470 407 451 . 73 602 Destroy 0b10 Robot/C 3700 | . . . 240 140 . 60 . 380 300 40 60 . 220 60 . 220 40 . 500 300 160 80 60 240 300 . 60 240 Destroy 0b10 Robot/NC 575 | . . . 45 35 . 5 5 . 40 5 . . 10 55 . 60 . . 60 50 10 45 40 40 30 . . 40 Destroy Leader 718 | . . . 70 30 . 10 . 20 94 . 10 . 30 34 . 52 . . 106 42 . . 10 78 46 . 10 76 Allied During Kill 462 | . . . 32 3 . . . . . . . . 23 . . . . . . 93 135 125 51 . . . . . Successful Hack 340 | . . . 15 . . . 4 12 28 . . . . 30 . 91 . . 12 49 . . . . 51 . . 48 Disable Machine 255 | . . . 15 15 . . . 30 . . . . . 15 . . . . 60 15 . . 90 . . . . 15 Anti-Garrison Action 500 | . . . . . . . . 300 . . . . . . . 200 . . . . . . . . . . . . Destroy Structure 547 | . . . 1 15 . . . 43 26 . . . . 22 2 41 . . 42 10 32 . 204 34 24 . 3 48 Advance Influence 900 | . . . . . . . . . . . . . . 900 . . . . . . . . . . . . . . Partial Spotted 15 | . . . . . . . . . . . . . . . . . . . . . . . . . . . . 15 Lose Combat Pursuer 480 | . . . 15 15 . . . 90 30 30 45 . 90 . . . . . . 15 . . 15 15 . . . 120 Influence Decreases 8279 | . . . 433 251 2 45 35 62 1028 305 192 . 344 751 347 388 365 . 646 689 292 229 213 581 537 37 32 475 Entered New Map 1459 | . . . . . 2 . 19 2 389 115 15 . . 11 257 15 121 . . 69 9 39 56 175 81 37 12 35 Time Decay 5494 | . . . 358 221 . 45 16 . 589 190 167 . 244 440 90 363 244 . 486 343 184 190 80 386 446 . . 412 Search Patrol Dispatched 300 | . . . . . . . . . . . . . . 300 . . . . . . . . . . . . . . Lost Part 521 | . . . 35 10 . . . 60 50 . 10 . 80 . . 10 . . 160 6 30 . . 20 10 . 20 20 Lost Ally 286 | . . . 40 20 . . . . . . . . 20 . . . . . . 60 69 . 77 . . . . . Purge Threat 219 | . . . . . . . . . . . . . . . . . . . . 211 . . . . . . . 8 Squads Dispatched 54 | . 1 . . . . . . . 11 . . . 1 6 . 7 . . 10 . . . 2 5 5 . . 6 Investigation 8 | . . . . . . . . . . . . . . 2 . 2 . . . . . . 1 . 2 . . 1 Extermination 17 | . . . . . . . . . 4 . . . . 3 . 2 . . 3 . . . . 2 . . . 3 Reinforcement 19 | . 1 . . . . . . . 2 . . . . 1 . 2 . . 4 . . . 1 3 3 . . 2 Assault 3 | . . . . . . . . . 2 . . . 1 . . . . . . . . . . . . . . . Garrison 7 | . . . . . . . . . 3 . . . . . . 1 . . 3 . . . . . . . . . Intercept . | . . . . . . . . . . . . . . . . . . . . . . . . . . . . . Searches Triggered 3 | . . . . . . . . . . . . . . 3 . . . . . . . . . . . . . . Data Miner Redirects 2 | . . . . . . . . . . . . . . 1 . . . . . . . . . . . . . 1 Construction Impeded . | . . . . . . . . . . . . . . . . . . . . . . . . . . . . . Haulers Reinforced 6 | . . . . . . . . . 1 . . . . 1 . . . . 2 . . . . 1 1 . . . Active Scanning Responses . | . . . . . . . . . . . . . . . . . . . . . . . . . . . . . Cargo Convoy Interrupts 1 | . . . . . . . . . 1 . . . . . . . . . . . . . . . . . . . Stealth | -11 -10 -10 -9 -9 -9 -8 -8 -8 -7 -7 -7 -7 -6 -6 -6 -6 -6 -6 -5 -5 -5 -5 -5 -4 -3 -2 -2 -1 --------- Run | Yrd Mat Min Mat Min Exi Min Mat Gar Fac Low Low Dat Pro Fac Was Fac Low Low Fac Ext Cet Arc Hub Fac Res Res DSF Acc Distress Signals 16 | . . . . . . . . . 1 . . . 1 . . . . . 2 2 2 . . 2 4 . . 2 Communications Jammed 60 | . . . . . . . . . . . . . . . . . . . 11 . . . . . . . 9 40 Distress Signals 48 | . . . . . . . . . . . . . . . . . . . 11 . . . . . . . . 37 Times Spotted 306 | . 10 . 19 8 . 3 3 27 20 3 6 . 24 7 8 19 3 1 31 17 10 5 . 23 28 . 5 26 Peak Tracking Total 9 | . 8 . 3 3 . 3 3 4 4 4 3 . 8 2 6 3 3 1 7 4 5 2 5 9 7 . 2 7 Tactical Retreats 28 | . . . 1 1 . . . 5 2 1 3 . 3 . 1 4 . 1 . 1 . . 1 1 . . . 3 ECM-based Alert Blocks 8 | . . . . . . . . . . . . . . . . 7 . 1 . . . . . . . . . . Traps | -11 -10 -10 -9 -9 -9 -8 -8 -8 -7 -7 -7 -7 -6 -6 -6 -6 -6 -6 -5 -5 -5 -5 -5 -4 -3 -2 -2 -1 ------- Run | Yrd Mat Min Mat Min Exi Min Mat Gar Fac Low Low Dat Pro Fac Was Fac Low Low Fac Ext Cet Arc Hub Fac Res Res DSF Acc Traps Triggered 13 | . . . . . . . . 1 . . . . . 1 . 2 . . 2 1 . . 3 2 . . 1 . Indirectly . | . . . . . . . . . . . . . . . . . . . . . . . . . . . . . Trap Hack Attempts . | . . . . . . . . . . . . . . . . . . . . . . . . . . . . . Triggered . | . . . . . . . . . . . . . . . . . . . . . . . . . . . . . Disarmed . | . . . . . . . . . . . . . . . . . . . . . . . . . . . . . Reprogrammed . | . . . . . . . . . . . . . . . . . . . . . . . . . . . . . Reused . | . . . . . . . . . . . . . . . . . . . . . . . . . . . . . Traps Extracted . | . . . . . . . . . . . . . . . . . . . . . . . . . . . . . Installed . | . . . . . . . . . . . . . . . . . . . . . . . . . . . . . Triggered . | . . . . . . . . . . . . . . . . . . . . . . . . . . . . . Machines | -11 -10 -10 -9 -9 -9 -8 -8 -8 -7 -7 -7 -7 -6 -6 -6 -6 -6 -6 -5 -5 -5 -5 -5 -4 -3 -2 -2 -1 ---------- Run | Yrd Mat Min Mat Min Exi Min Mat Gar Fac Low Low Dat Pro Fac Was Fac Low Low Fac Ext Cet Arc Hub Fac Res Res DSF Acc Machines Disabled 23 | . . . 1 1 . . . 8 . . . . . 1 . . . . 4 1 . . 6 . . . . 1 Max in Single Turn 6 | . . . 1 . . . . 1 . . . . . 1 . . . . 1 1 . . 6 . . . . 1 Garrison Access 3 | . . . . . . . . . 1 . . . . . . 1 . . . . . . . . 1 . . . Garrison Relay 6 | . . . . . . . . 6 . . . . . . . . . . . . . . . . . . . . Network Hub 1 | . . . . . . . . . . . . . . . . . . . . . . . 1 . . . . . Machines Repaired . | . . . . . . . . . . . . . . . . . . . . . . . . . . . . . Machines Dismantled . | . . . . . . . . . . . . . . . . . . . . . . . . . . . . . Machines Sabotaged . | . . . . . . . . . . . . . . . . . . . . . . . . . . . . . Overloaded Fab Kills . | . . . . . . . . . . . . . . . . . . . . . . . . . . . . . Hacking | -11 -10 -10 -9 -9 -9 -8 -8 -8 -7 -7 -7 -7 -6 -6 -6 -6 -6 -6 -5 -5 -5 -5 -5 -4 -3 -2 -2 -1 --------- Run | Yrd Mat Min Mat Min Exi Min Mat Gar Fac Low Low Dat Pro Fac Was Fac Low Low Fac Ext Cet Arc Hub Fac Res Res DSF Acc Machines Accessed 61 | . . . 4 . 2 . 1 1 8 . 1 4 . 6 . 7 . . 4 7 1 . 2 2 5 2 . 4 Terminals 34 | . . . 4 . . . . 1 2 . . . . 4 . 2 . . 2 7 1 . 2 1 2 2 . 4 Fabricators 4 | . . . . . . . . . 2 . . . . . . . . . 1 . . . . . 1 . . . Repair Stations 6 | . . . . . . . . . 1 . . . . 1 . 3 . . . . . . . . 1 . . . Recycling Units . | . . . . . . . . . . . . . . . . . . . . . . . . . . . . . Scanalyzers 6 | . . . . . . . . . 2 . . . . 1 . 1 . . 1 . . . . 1 . . . . Garrison Access 4 | . . . . . . . 1 . 1 . . . . . . 1 . . . . . . . . 1 . . . Total Hacks 171 | . . . 9 . 5 . 1 2 14 . 1 28 . 18 . 21 . . 8 20 1 . 5 2 16 7 . 13 Successful 91 | . . . 4 . 5 . 1 1 5 . 1 28 . 6 . 11 . . 2 9 . . 1 . 8 3 . 6 Failed 80 | . . . 5 . . . . 1 9 . . . . 12 . 10 . . 6 11 1 . 4 2 8 4 . 7 Catastrophic 18 | . . . 1 . . . . . 4 . . . . 3 . 2 . . . 2 . . . 1 2 1 . 2 Database Lockouts . | . . . . . . . . . . . . . . . . . . . . . . . . . . . . . Manual 61 | . . . 5 . 1 . . . 3 . . . . 11 . 2 . . 2 17 1 . 4 1 7 1 . 6 Terminals 90 | . . . 9 . . . . 2 3 . . . . 14 . 3 . . 3 20 1 . 5 1 9 7 . 13 Fabricators 9 | . . . . . . . . . 2 . . . . . . . . . 2 . . . . . 5 . . . Repair Stations 17 | . . . . . . . . . 2 . . . . 2 . 12 . . . . . . . . 1 . . . Recycling Units . | . . . . . . . . . . . . . . . . . . . . . . . . . . . . . Scanalyzers 16 | . . . . . . . . . 6 . . . . 2 . 4 . . 3 . . . . 1 . . . . Garrison Access 5 | . . . . . . . 1 . 1 . . . . . . 2 . . . . . . . . 1 . . . Terminal Hacks 54 | . . . 2 . 5 . . 1 . . 1 28 . 2 . . . . . 6 . . . . 3 2 . 4 Record 14 | . . . . . 4 . . . . . . 10 . . . . . . . . . . . . . . . . Part Schematic 10 | . . . . . . . . . . . . 8 . 1 . . . . . 1 . . . . . . . . Robot Schematic 7 | . . . . . . . . . . . . 7 . . . . . . . . . . . . . . . . Prototype ID Bank 4 | . . . . . . . . . . . . 3 . . . . . . . 1 . . . . . . . . Open Door 2 | . . . . . . . . . . . 1 . . . . . . . . . . . . . . . . 1 Open DSF 1 | . . . . . . . . . . . . . . . . . . . . . . . . . . 1 . . Level Access Points 2 | . . . . . . . . . . . . . . . . . . . . . . . . . 1 . . 1 Branch Access Points 3 | . . . 1 . . . . . . . . . . 1 . . . . . . . . . . . 1 . . Terminal Index 1 | . . . . . . . . . . . . . . . . . . . . . . . . . 1 . . . Unreport Threat 4 | . . . . . . . . . . . . . . . . . . . . 3 . . . . . . . 1 Registered Components 2 | . . . 1 . . . . . . . . . . . . . . . . . . . . . 1 . . . Zone Layout 2 | . . . . . . . . . . . . . . . . . . . . 1 . . . . . . . 1 Garrison Registry 1 | . . . . . . . . 1 . . . . . . . . . . . . . . . . . . . . Proto ID Catalog 1 | . . . . . 1 . . . . . . . . . . . . . . . . . . . . . . . Fabricator Hacks 2 | . . . . . . . . . . . . . . . . . . . . . . . . . 2 . . . Load Schematic 1 | . . . . . . . . . . . . . . . . . . . . . . . . . 1 . . . Build 1 | . . . . . . . . . . . . . . . . . . . . . . . . . 1 . . . Repair Station Hacks 8 | . . . . . . . . . 2 . . . . . . 6 . . . . . . . . . . . . Scan Component 5 | . . . . . . . . . 1 . . . . . . 4 . . . . . . . . . . . . Repair 3 | . . . . . . . . . 1 . . . . . . 2 . . . . . . . . . . . . Recycling Unit Hacks . | . . . . . . . . . . . . . . . . . . . . . . . . . . . . . Scanalyzer 9 | . . . . . . . . . 2 . . . . 1 . 4 . . 2 . . . . . . . . . Insert Component 1 | . . . . . . . . . . . . . . . . 1 . . . . . . . . . . . . Analyze 2 | . . . . . . . . . . . . . . . . 2 . . . . . . . . . . . . Retrieve Study 6 | . . . . . . . . . 2 . . . . 1 . 1 . . 2 . . . . . . . . . Garrison Access Hacks 2 | . . . . . . . 1 . . . . . . . . . . . . . . . . . 1 . . . Unlock Access 1 | . . . . . . . 1 . . . . . . . . . . . . . . . . . . . . . Seal Access 1 | . . . . . . . . . . . . . . . . . . . . . . . . . 1 . . . Unauthorized Hacks 16 | . . . 2 . . . . . 1 . . . . 3 . 1 . . . 3 . . 1 . 2 1 . 2 Terminals 13 | . . . 2 . . . . . 1 . . . . 2 . . . . . 3 . . 1 . 1 1 . 2 Botnet 13 | . . . 2 . . . . . 1 . . . . 2 . . . . . 3 . . 1 . 1 1 . 2 Fabricators . | . . . . . . . . . . . . . . . . . . . . . . . . . . . . . Repair Stations 2 | . . . . . . . . . . . . . . 1 . . . . . . . . . . 1 . . . Patch 2 | . . . . . . . . . . . . . . 1 . . . . . . . . . . 1 . . . Recycling Units . | . . . . . . . . . . . . . . . . . . . . . . . . . . . . . Scanalyzers . | . . . . . . . . . . . . . . . . . . . . . . . . . . . . . Garrison Access 1 | . . . . . . . . . . . . . . . . 1 . . . . . . . . . . . . Jam 1 | . . . . . . . . . . . . . . . . 1 . . . . . . . . . . . . Data Cores Recovered 2 | . . . . . . . . . . . . . . . . . . . . 1 . . . . . . . 1 Used 1 | . . . . . . . . . . . . . . . . . . . . . . . . . . . . 1 Hacking Detections 45 | . . . 2 . . . . 1 8 . . . . 6 . 7 . . 3 7 . . 2 2 3 1 . 3 Full Trace Events 5 | . . . . . . . . . . . . . . 1 . 1 . . . . . . 1 . 1 . . 1 Feedback Events 1 | . . . . . . . . . . . . . . . . . . . . . . . . . . . . 1 Corruption 1 | . . . . . . . . . . . . . . . . . . . . . . . . . . . . 1 Feedback Blocked . | . . . . . . . . . . . . . . . . . . . . . . . . . . . . . Robot Schematics Acquired 7 | . . . . . . . . . . . . 7 . . . . . . . . . . . . . . . . Robots Built . | . . . . . . . . . . . . . . . . . . . . . . . . . . . . . Authchips . | . . . . . . . . . . . . . . . . . . . . . . . . . . . . . Time . | . . . . . . . . . . . . . . . . . . . . . . . . . . . . . Total Robot Build Rating . | . . . . . . . . . . . . . . . . . . . . . . . . . . . . . Part Schematics Acquired 11 | . . . . . . . . . . . . 8 . 1 . 1 . . . 1 . . . . . . . . Parts Built 2 | . . . . . . . . . . . . . . . . . . . . . . . . . 2 . . . Authchips . | . . . . . . . . . . . . . . . . . . . . . . . . . . . . . Time 24 | . . . . . . . . . . . . . . . . . . . . . . . . . 24 . . . Total Part Build Rating 6 | . . . . . . . . . . . . . . . . . . . . . . . . . 6 . . . Part Studies Acquired 6 | . . . . . . . . . 2 . . . . 1 . 1 . . 2 . . . . . . . . . Parts Repaired 3 | . . . . . . . . . 1 . . . . . . 2 . . . . . . . . . . . . Time 116 | . . . . . . . . . 44 . . . . . . 72 . . . . . . . . . . . . Parts Recycled . | . . . . . . . . . . . . . . . . . . . . . . . . . . . . . Recycled Matter . | . . . . . . . . . . . . . . . . . . . . . . . . . . . . . Retrieved Matter . | . . . . . . . . . . . . . . . . . . . . . . . . . . . . . Retrieved Components . | . . . . . . . . . . . . . . . . . . . . . . . . . . . . . Parts Scanalyzed 1 | . . . . . . . . . . . . . . . . 1 . . . . . . . . . . . . Part Schematics Acquired 1 | . . . . . . . . . . . . . . . . 1 . . . . . . . . . . . . Parts Damaged 1 | . . . . . . . . . . . . . . . . 1 . . . . . . . . . . . . Bothacking | -11 -10 -10 -9 -9 -9 -8 -8 -8 -7 -7 -7 -7 -6 -6 -6 -6 -6 -6 -5 -5 -5 -5 -5 -4 -3 -2 -2 -1 ------------ Run | Yrd Mat Min Mat Min Exi Min Mat Gar Fac Low Low Dat Pro Fac Was Fac Low Low Fac Ext Cet Arc Hub Fac Res Res DSF Acc Used RIF Installer . | . . . . . . . . . . . . . . . . . . . . . . . . . . . . . Robots Hacked . | . . . . . . . . . . . . . . . . . . . . . . . . . . . . . Non-combat . | . . . . . . . . . . . . . . . . . . . . . . . . . . . . . Combat . | . . . . . . . . . . . . . . . . . . . . . . . . . . . . . Robot Hacks Applied . | . . . . . . . . . . . . . . . . . . . . . . . . . . . . . Relay Couplers Released 27 | . . . . . . . . 23 4 . . . . . . . . . . . . . . . . . . . Machine Destruction 23 | . . . . . . . . 23 . . . . . . . . . . . . . . . . . . . . Programmers 4 | . . . . . . . . . 4 . . . . . . . . . . . . . . . . . . . Fabnet Peak Effective % . | . . . . . . . . . . . . . . . . . . . . . . . . . . . . . Robots Rewired 3 | . . . . . . . . . . . . . . . . . . . . 3 . . . . . . . . Allies Hacked . | . . . . . . . . . . . . . . . . . . . . . . . . . . . . . Hacks Repelled . | . . . . . . . . . . . . . . . . . . . . . . . . . . . . . Allies | -11 -10 -10 -9 -9 -9 -8 -8 -8 -7 -7 -7 -7 -6 -6 -6 -6 -6 -6 -5 -5 -5 -5 -5 -4 -3 -2 -2 -1 -------- Run | Yrd Mat Min Mat Min Exi Min Mat Gar Fac Low Low Dat Pro Fac Was Fac Low Low Fac Ext Cet Arc Hub Fac Res Res DSF Acc Total Allies 21 | . . 3 . . . . . . . . . . 1 . . . . . . 12 5 . . . . . . . Largest Group 11 | . . 3 3 1 . . . . . . . . 1 . . . . . . 9 11 8 7 . . . . . Highest-Rated Group 791 | . . 40 40 16 . . . . . . . . 96 . . . . . . 387 791 624 420 . . . . . Highest-Rated Ally 159 | . . 16 16 16 . . . . . . . . 96 . . . . . . 159 159 159 96 . . . . . Initial Warlord ECA Mod 7 | . . . . . . . . . 7 7 7 7 6 6 6 6 6 6 5 5 5 5 5 4 3 2 2 1 Total Orders . | . . . . . . . . . . . . . . . . . . . . . . . . . . . . . Ally Attacks 265 | . . . 47 10 . . . . . . . . 22 . . . . . . 69 87 20 10 . . . . . Total Damage 6784 | . . . 558 212 . . . . . . . . 567 . . . . . . 1931 2556 636 324 . . . . . Kills 39 | . . . 9 2 . . . . . . . . 4 . . . . . . 8 9 4 3 . . . . . Allies Corrupted 1 | . . . 1 . . . . . . . . . . . . . . . . . . . . . . . . . Allies Melted . | . . . . . . . . . . . . . . . . . . . . . . . . . . . . . Intel | -11 -10 -10 -9 -9 -9 -8 -8 -8 -7 -7 -7 -7 -6 -6 -6 -6 -6 -6 -5 -5 -5 -5 -5 -4 -3 -2 -2 -1 ------- Run | Yrd Mat Min Mat Min Exi Min Mat Gar Fac Low Low Dat Pro Fac Was Fac Low Low Fac Ext Cet Arc Hub Fac Res Res DSF Acc Active Infowar (turns) 10670 | . 93 32 684 . . . . . . . . . . 1021 182 1163 632 60 1496 993 409 387 165 918 1101 16 246 1072 Sensors 648 | . . . . . . . . . . . . . . 1 . . 613 34 . . . . . . . . . . Terrain 5752 | . 93 32 684 . . . . . . . . . . 1007 182 332 . 2 783 66 253 165 118 657 609 16 23 730 T.N.C. 6722 | . . . . . . . . . . . . . . . . 349 632 60 1466 993 409 387 165 890 1101 16 246 8 Cloaking 2 | . . . . . . . . . . . . . . 2 . . . . . . . . . . . . . . Jamming 1585 | . . . . . . . . . . . . . . 12 . 117 . 1 155 . . . . . . . 228 1072 ECM 731 | . . . . . . . . . . . . . . 3 . 653 . 25 50 . . . . . . . . . Robot Analysis Total . | . . . . . . . . . . . . . . . . . . . . . . . . . . . . . Derelict Logs Recovered 6 | . . . . 1 . . . . . . 2 . 1 . . . 2 . . . . . . . . . . . Drone Launches . | . . . . . . . . . . . . . . . . . . . . . . . . . . . . . Drone Recoveries . | . . . . . . . . . . . . . . . . . . . . . . . . . . . . . Exploration | -11 -10 -10 -9 -9 -9 -8 -8 -8 -7 -7 -7 -7 -6 -6 -6 -6 -6 -6 -5 -5 -5 -5 -5 -4 -3 -2 -2 -1 ------------- Run | Yrd Mat Min Mat Min Exi Min Mat Gar Fac Low Low Dat Pro Fac Was Fac Low Low Fac Ext Cet Arc Hub Fac Res Res DSF Acc Turns Passed 19212 | 39 119 32 1211 990 491 224 105 1084 1853 398 1330 152 982 1082 182 1443 632 60 1496 993 409 387 165 918 1101 16 246 1072 Spaces Moved 12057 | 42 182 35 774 549 307 127 53 474 1175 331 871 83 568 712 164 932 558 51 813 669 207 232 102 533 671 15 157 670 Core 253 | 34 174 35 10 . . . . . . . . . . . . . . . . . . . . . . . . . Treads 1953 | 8 8 . 610 549 307 127 53 289 . . . . 2 . . . . . . . . . . . . . . . Legs 8379 | . . . . . . . . 185 1175 331 871 83 566 214 . 383 558 51 706 669 207 232 102 533 671 15 157 670 Wheels 1318 | . . . . . . . . . . . . . . 498 164 549 . . 107 . . . . . . . . . Hover . | . . . . . . . . . . . . . . . . . . . . . . . . . . . . . Flight 154 | . . . 154 . . . . . . . . . . . . . . . . . . . . . . . . . Fastest Speed 32 | 50 50 50 32 160 160 160 160 160 112 112 112 185 110 80 85 74 107 107 85 117 117 121 121 125 111 111 111 111 Average Speed 124 | 70 55 50 133 160 160 160 160 172 120 112 145 185 147 118 85 94 107 108 112 117 120 121 124 125 119 111 111 114 Slowest Speed 400 | 160 160 50 160 160 160 160 160 260 187 112 188 185 400 182 85 108 107 110 385 121 121 121 125 125 200 111 184 180 Overloaded Moves . | . . . . . . . . . . . . . . . . . . . . . . . . . . . . . Propulsion Burnouts . | . . . . . . . . . . . . . . . . . . . . . . . . . . . . . Robots Hopped 5 | . . . . . . . . . . . . . . . . . . . . . . . 5 . . . . . Potential Cave-ins . | . . . . . . . . . . . . . . . . . . . . . . . . . . . . . Cave-ins Triggered 1 | . . . . . . . . . . . . . . . . . . . . . . . . . . . . 1 Exploration Rate (%) 44 | 4 42 10 48 97 61 27 11 44 24 63 82 69 66 19 93 21 66 9 25 79 56 89 12 26 24 1 95 14 Regions Visited 28 Branch Regions 14 Pre-discovered Areas 5 | . . . . 2 1 . . . . 1 . 1 . . . . . . . . . . . . . . . . Known Exits Taken 8 | . . . 1 . . 1 1 . . . . . . . . 1 1 1 . . . . . . 1 1 . . Unknown Exits Taken 16 | 1 1 1 . 1 1 . . . 1 1 1 1 1 . . . . . 1 1 1 1 1 1 . . . . Scrap Searched 10 | . . . . 2 . . . . . 1 1 . 1 . . . 4 1 . . . . . . . . . . Spaces Dug 169 | . . . 1 . . . . 3 26 1 1 . . 22 2 41 . . 21 2 . . 3 17 12 . 1 16 Terrain Destroyed 351 | . . . 1 . . . . 3 26 1 1 . . 22 2 41 . . 21 2 . . 185 17 12 . 1 16 Melee 169 | . . . 1 . . . . 3 26 1 1 . . 22 2 41 . . 21 2 . . 3 17 12 . 1 16 Projectile . | . . . . . . . . . . . . . . . . . . . . . . . . . . . . . AOE 182 | . . . . . . . . . . . . . . . . . . . . . . . 182 . . . . . Terrain Rammed . | . . . . . . . . . . . . . . . . . . . . . . . . . . . . . Walls Destroyed . | . . . . . . . . . . . . . . . . . . . . . . . . . . . . . Machines Disabled . | . . . . . . . . . . . . . . . . . . . . . . . . . . . . . Actions | -11 -10 -10 -9 -9 -9 -8 -8 -8 -7 -7 -7 -7 -6 -6 -6 -6 -6 -6 -5 -5 -5 -5 -5 -4 -3 -2 -2 -1 --------- Run | Yrd Mat Min Mat Min Exi Min Mat Gar Fac Low Low Dat Pro Fac Was Fac Low Low Fac Ext Cet Arc Hub Fac Res Res DSF Acc Total 15088 | 49 202 48 899 601 307 135 76 657 1515 348 907 82 660 879 202 1347 580 55 1252 821 361 323 121 696 871 14 210 870 Wait 1344 | . 2 14 47 18 . 2 1 76 197 4 12 . 41 47 34 265 9 . 223 19 125 45 8 36 41 . 6 72 Move 12021 | 41 181 34 773 548 306 126 53 473 1174 330 870 82 567 712 163 931 557 50 812 668 206 231 92 532 670 14 156 669 Hop 4 | . . . . . . . . . . . . . . . . . . . . . . . 4 . . . . . Pick Up 206 | 5 6 . 17 1 1 . 9 13 16 1 2 . . 13 1 15 2 . 25 8 3 9 . 11 28 . 8 12 Fast Attach 120 | 3 3 . 13 1 . . . 3 7 2 1 . 8 17 . 4 . . 22 3 4 5 2 9 8 . 3 2 Attach 99 | . . . 7 . . . 2 6 6 3 4 . 8 4 . 7 . 2 16 1 5 2 . 3 10 . 4 9 Detach 25 | . . . 1 . . . . 1 3 . . . 6 6 . 1 . . 1 . . 1 . 1 . . 1 3 Swap 226 | . 1 . 2 . . . 4 6 15 . 1 . . 18 1 23 4 2 37 13 10 2 6 17 26 . 6 32 Drop 238 | . 9 . 11 . . . 6 13 24 1 . . . 21 1 18 1 1 22 15 6 15 2 18 32 . 9 13 Fire . | . . . . . . . . . . . . . . . . . . . . . . . . . . . . . Melee 736 | . . . 28 32 . 7 1 66 73 7 17 . 30 41 2 75 7 . 94 50 2 13 7 56 55 . 16 57 Ram . | . . . . . . . . . . . . . . . . . . . . . . . . . . . . . Kick 6 | . . . . . . . . . . . . . . . . . . . . 1 . . . 3 1 . . 1 Crush 1 | . . . . 1 . . . . . . . . . . . . . . . . . . . . . . . . Escape Stasis 23 | . . . . . . . . . . . . . . . . 8 . . . 5 . . . 10 . . . . Rewire 39 | . . . . . . . . . . . . . . . . . . . . 38 . . . . . . 1 . Trap . | . . . . . . . . . . . . . . . . . . . . . . . . . . . . . Miscellaneous . | . . . . . . . . . . . . . . . . . . . . . . . . . . . . . Route ------- -11/Scrapyard -10/Materials -10/Mines -9/Materials (discovered 3 exits: *Mat / *Min / Sto) -9/Mines (discovered 3 exits: *Mat x2 / *Exi) -9/Exiles -8/Mines -8/Materials -8/Garrison (discovered 4 exits: *Fac x3 / [Mat]) -7/Factory (discovered 2 exits: *Fac / [*Low]) -7/Lower Caves -7/Lower Caves (discovered 2 exits: *Fac / *Dat) -7/Data Miner -6/Proximity Caves -6/Factory (discovered 3 exits: Fac / Low x2) -6/Waste -6/Factory -6/Lower Caves -6/Lower Caves -5/Factory -5/Extension (discovered 2 exits: *Fac / *Cet) -5/Cetus (discovered 2 exits: *Fac / [*Arc]) -5/Archives (discovered 3 exits: *Fac / *Hub x2) -5/Hub_04(d) -4/Factory (discovered 2 exits: *Res / [Upp]) -3/Research (discovered 4 exits: *Res x3 / [*Tes]) -2/Research (discovered 3 exits: Qua x2 / DSF) -2/DSF -1/Access To Epsilon Eridani History --------- Turn | Location | Event 7 | -11/Scrapyard | Discovered new exit (range 15) 40 | -11/Scrapyard | Entered Materials 154 | -10/Materials | Discovered new exit (range 11) 159 | -10/Materials | Entered Mines 160 | -10/Mines | Assisted by bots powering up and referring to "LRC-V3" 168 | -10/Mines | Discovered new exit (range 13) 191 | -10/Mines | Entered Materials 191 | -9/Materials | Accompanied by 3 allies 191 | -9/Materials | Evolved 2 slots: Propulsion x2 306 | -9/Materials | Lost 3 parts (1p2n) 543 | -9/Materials | Discovered new exit (range 10) 552 | -9/Materials | Build established: Mutant 1010 | -9/Materials | Identified exit to Materials 1298 | -9/Materials | Identified exit to Mines 1298 | -9/Materials | Identified exit to Storage 1402 | -9/Materials | Entered Mines 1402 | -9/Mines | Accompanied by 1 ally 1764 | -9/Mines | Discovered exit to Materials (range 15) 1952 | -9/Mines | Learned location of Storage (-9) 2158 | -9/Mines | Discovered exit to Materials (range 9) 2385 | -9/Mines | Deemed a non-threat by the Exiles lab entrance 2385 | -9/Mines | Discovered new exit (range 5) 2392 | -9/Mines | Entered Exiles 2431 | -9/Exiles | Met 8R-AWN 2460 | -9/Exiles | Met EX-HEX 2520 | -9/Exiles | Met EX-DEC 2530 | -9/Exiles | Learned location of Zion (-6) 2557 | -9/Exiles | Met EX-BIN 2580 | -9/Exiles | Aligned with FarCom system 2581 | -9/Exiles | Given EX-Vault access code 2618 | -9/Exiles | Opened EX-Vault 2628 | -9/Exiles | Found Modified TNC 2662 | -9/Exiles | Warned to stay clear of 0b10 Research branches 2870 | -9/Exiles | Discovered new exit (range 10) 2883 | -9/Exiles | Left Exiles lab with Modified TNC 2883 | -9/Exiles | Entered Mines 2926 | -8/Mines | Discovered exit to Materials (range 11) 3107 | -8/Mines | Entered Materials 3107 | -8/Materials | Evolved 2 slots: Propulsion x1, Weapon x1 3212 | -8/Materials | Identified exit to Garrison 3212 | -8/Materials | Entered Garrison 3254 | -8/Garrison | Triggered checkpoint 3322 | -8/Garrison | Garrison Relay disabled 3334 | -8/Garrison | Discovered new exit (range 69) 3334 | -8/Garrison | Discovered new exit (range 34) 3334 | -8/Garrison | Discovered new exit (range 72) 3334 | -8/Garrison | Discovered new exit (range 76) 3469 | -8/Garrison | Garrison Relay disabled 3473 | -8/Garrison | Garrison Relay disabled 3484 | -8/Garrison | Garrison Relay disabled 3493 | -8/Garrison | Garrison Relay disabled 3567 | -8/Garrison | Build established: Gladiator 3606 | -8/Garrison | Triggered checkpoint 3606 | -8/Garrison | Triggered checkpoint 3646 | -8/Garrison | Lost 3 parts (3n) 3816 | -8/Garrison | Triggered checkpoint 4048 | -8/Garrison | Triggered checkpoint 4060 | -8/Garrison | Garrison Relay disabled 4212 | -8/Garrison | Build established: Scavenger-Gladiator 4296 | -8/Garrison | Entered Factory 4296 | -7/Factory | Evolved 2 slots: Propulsion x1, Utility x1 4449 | -7/Factory | Discovered new exit (range 14) 4853 | -7/Factory | Repaired Great Axe+ 4990 | -7/Factory | Build established: Gladiator 5310 | -7/Factory | Cargo convoy interrupted 5352 | -7/Factory | Found Prototype Device 5352 | -7/Factory | Identified Adv. EM Shield 5366 | -7/Factory | Found Adv. EM Shield 5565 | -7/Factory | Build established: Scavenger-Gladiator 5831 | -7/Factory | Garrison activated, responded to threat 6134 | -7/Factory | Discovered new exit (range 6) 6149 | -7/Factory | Entered Lower Caves 6155 | -7/Lower Caves | Met a Warlord Commander 6156 | -7/Lower Caves | Learned location of Warlord (-5) 6157 | -7/Lower Caves | Warlord Commander delivered Encrypted Comm Array 6161 | -7/Lower Caves | Found Encrypted Comm Array 6305 | -7/Lower Caves | Encountered a Warlord checkpoint 6437 | -7/Lower Caves | Build established: Gladiator 6516 | -7/Lower Caves | Found Alien Artifact 6516 | -7/Lower Caves | Identified Core Expander 6516 | -7/Lower Caves | Installed Core Expander, added new Power slot 6542 | -7/Lower Caves | Discovered new exit (range 5) 6547 | -7/Lower Caves | Entered another Lower Caves area 6548 | -7/Lower Caves | Encountered a Warlord checkpoint 6568 | -7/Lower Caves | Discovered new exit (range 7) 6663 | -7/Lower Caves | Learned Factory garrison access intel 6850 | -7/Lower Caves | Lost 5 parts (1p3n1w) 7104 | -7/Lower Caves | Entered a destroyed Warlord outpost 7840 | -7/Lower Caves | Learned Factory trap positions 7847 | -7/Lower Caves | Discovered new exit (range 15) 7877 | -7/Lower Caves | Entered Data Miner 7877 | -7/Data Miner | Discovered new exit (range 6) 7913 | -7/Data Miner | Met Data Miner 7950 | -7/Data Miner | Learned location of Section 7 (-2) 7950 | -7/Data Miner | Acquired the access code to Warlord's prototype stash 7979 | -7/Data Miner | Received God Mode back door access code from Data Miner 8029 | -7/Data Miner | Entered Proximity Caves 8163 | -6/Proximity Caves | Spotter reported a threat 8169 | -6/Proximity Caves | Spotter reported a threat 8283 | -6/Proximity Caves | Attracted the attention of an 0b10 outpost 8484 | -6/Proximity Caves | Lost 3 parts (1p2n) 8571 | -6/Proximity Caves | Spotter reported a threat 8624 | -6/Proximity Caves | Spotter reported a threat 8632 | -6/Proximity Caves | Lost 3 parts (2p1u) 8761 | -6/Proximity Caves | Attracted the attention of an 0b10 checkpoint 8766 | -6/Proximity Caves | Core integrity fell below 50% 8773 | -6/Proximity Caves | Spotter reported a threat 8797 | -6/Proximity Caves | Spotter reported a threat 8813 | -6/Proximity Caves | Lost 4 parts (4n) 8820 | -6/Proximity Caves | Escorted by Enhanced Grunt 8841 | -6/Proximity Caves | Learned 4 Factory zone layouts 8850 | -6/Proximity Caves | Spotter reported a threat 8944 | -6/Proximity Caves | Spotted B-75 Beast 8999 | -6/Proximity Caves | Discovered new exit (range 7) 9011 | -6/Proximity Caves | Entered Factory 9011 | -6/Factory | Evolved 2 slots: Utility x2 9012 | -6/Factory | Identified exit to Factory 9013 | -6/Factory | Loaded intel: 71 trap records 9014 | -6/Factory | Loaded intel: 4 garrison access locations 9108 | -6/Factory | Incoming investigation squad redirected 9361 | -6/Factory | Search patrols dispatched 9702 | -6/Factory | Identified exit to Lower Caves 9711 | -6/Factory | Search patrols dispatched 9746 | -6/Factory | Build established: Scavenger-Gladiator 10061 | -6/Factory | Search patrols dispatched 10093 | -6/Factory | Sucked down chute 10093 | -6/Factory | Entered Waste 10100 | -6/Waste | Spotted C-40 Crusher 10101 | -6/Waste | Spotted C-40 Crusher 10108 | -6/Waste | EMP discharged 10121 | -6/Waste | Spotted C-40 Crusher 10127 | -6/Waste | Spotted C-40 Crusher 10133 | -6/Waste | Spotted C-40 Crusher 10134 | -6/Waste | Spotted C-40 Crusher 10208 | -6/Waste | EMP discharged 10208 | -6/Waste | System corruption reached 10% 10244 | -6/Waste | Discovered new exit (range 12) 10275 | -6/Waste | Entered Factory 10679 | -6/Factory | Discovered exit to Lower Caves (range 3) 10917 | -6/Factory | Build established: Hacker-Gladiator 11003 | -6/Factory | Garrison activated, responded to threat 11338 | -6/Factory | Build established: Scavenger-Gladiator 11347 | -6/Factory | Repaired Plasma Lance 11455 | -6/Factory | Repaired Broken Power Sword 11718 | -6/Factory | Entered Lower Caves 11809 | -6/Lower Caves | Learned Factory garrison access intel 12316 | -6/Lower Caves | Discovered new exit (range 14) 12332 | -6/Lower Caves | Learned Factory terminal intel 12349 | -6/Lower Caves | Identified exit to Lower Caves 12350 | -6/Lower Caves | Entered another Lower Caves area 12373 | -6/Lower Caves | Spotted B-75 Beast 12396 | -6/Lower Caves | Discovered exit to Factory (range 12) 12410 | -6/Lower Caves | Entered Factory 12410 | -5/Factory | Evolved 2 slots: Utility x1, Weapon x1 12411 | -5/Factory | Loaded intel: 28 terminal locations 12412 | -5/Factory | Loaded intel: 4 garrison access locations 12672 | -5/Factory | Lost 6 parts (1p2n3u) 12716 | -5/Factory | Discovered new exit (range 12) 12888 | -5/Factory | Destroyed 8 combat bots 12895 | -5/Factory | Lost 11 parts (2p6n1u2w) 13495 | -5/Factory | Garrison activated, responded to threat 13906 | -5/Factory | Entered Extension 14216 | -5/Extension | Rescued A7 14246 | -5/Extension | Rescued a captive Derelict 14302 | -5/Extension | Rescued a captive Derelict 14509 | -5/Extension | Spotted B-75 Beast 14518 | -5/Extension | Spotted B-75 Beast 14542 | -5/Extension | Allies destroyed B-75 Beast 14553 | -5/Extension | Allies destroyed B-75 Beast 14615 | -5/Extension | Rescued a captive Derelict 14617 | -5/Extension | Rescued a captive Derelict 14727 | -5/Extension | Rescued a captive Derelict 14802 | -5/Extension | Rescued a captive Derelict 14825 | -5/Extension | Rescued a captive Derelict 14826 | -5/Extension | Rescued a captive Derelict 14855 | -5/Extension | Discovered new exit (range 10) 14856 | -5/Extension | Discovered new exit (range 6) 14899 | -5/Extension | Entered Cetus 14899 | -5/Cetus | Accompanied by 9 allies (A7) 14904 | -5/Cetus | Acquired a Cetus Manufacturing Module code from A7 14915 | -5/Cetus | Spotted Cetus Guard 14916 | -5/Cetus | Spotted Cetus Guard 14919 | -5/Cetus | Spotted Cetus Guard 14920 | -5/Cetus | Spotted Cetus Guard 14929 | -5/Cetus | Allies destroyed Cetus Guard 14940 | -5/Cetus | Allies destroyed Cetus Guard 14940 | -5/Cetus | Destroyed Cetus Guard 14942 | -5/Cetus | Allies destroyed Cetus Guard 14969 | -5/Cetus | Lost 4 parts (1p1n2u) 14969 | -5/Cetus | Lost 3 allies 15017 | -5/Cetus | Started Cetus Manufacturing Module 15032 | -5/Cetus | Discovered new exit (range 15) 15042 | -5/Cetus | Manufactured an Enhanced Grunt 15067 | -5/Cetus | Manufactured an Enhanced Grunt 15092 | -5/Cetus | Manufactured an Enhanced Grunt 15117 | -5/Cetus | Manufactured an Enhanced Grunt 15142 | -5/Cetus | Manufactured an Enhanced Grunt 15161 | -5/Cetus | Spotted Cetus Guard 15161 | -5/Cetus | Spotted Cetus Guard 15163 | -5/Cetus | Spotted Cetus Guard 15164 | -5/Cetus | Spotted Cetus Guard 15177 | -5/Cetus | Allies destroyed Cetus Guard 15193 | -5/Cetus | Allies destroyed Cetus Guard 15195 | -5/Cetus | Allies destroyed Cetus Guard 15203 | -5/Cetus | Discovered new exit (range 16) 15211 | -5/Cetus | Met Revision 17 15218 | -5/Cetus | Lost 3 allies 15308 | -5/Cetus | Entered Archives 15308 | -5/Archives | Accompanied by 8 allies (A7) 15346 | -5/Archives | Core integrity fell below 50% 15383 | -5/Archives | Discovered new exit (range 16) 15454 | -5/Archives | Discovered new exit (range 14) 15531 | -5/Archives | Discovered new exit (range 16) 15695 | -5/Archives | Entered Hub_04(d) 15695 | -5/Hub_04(d) | Accompanied by 7 allies 15805 | -5/Hub_04(d) | Lost 3 allies 15808 | -5/Hub_04(d) | Discovered new exit (range 3) 15840 | -5/Hub_04(d) | Network Hub disabled 15860 | -5/Hub_04(d) | Entered Factory 15860 | -4/Factory | Evolved 2 slots: Utility x1, Weapon x1 16173 | -4/Factory | Found Prototype Hackware 16365 | -4/Factory | Discovered new exit (range 19) 16550 | -4/Factory | Identified Exp. Hacking Suite 16747 | -4/Factory | Discovered new exit (range 8) 16778 | -4/Factory | Entered Research 16778 | -3/Research | Evolved 2 slots: Utility x1, Weapon x1 16978 | -3/Research | Revision forces began assault on 0b10 17016 | -3/Research | Met up with Revision 17++ 17103 | -3/Research | Build established: Gladiator 17105 | -3/Research | Identified exit to Research 17324 | -3/Research | Discovered new exit (range 8) 17478 | -3/Research | Research terminal network offline 17686 | -3/Research | Found Prototype Processor 17686 | -3/Research | Identified Exp. Core Analyzer 17793 | -3/Research | Fabricated Actuator Array (x2) 17879 | -3/Research | Entered another Research area 17879 | -2/Research | Evolved 2 slots: Utility x2 17892 | -2/Research | Identified exit to Quarantine 17895 | -2/Research | Identified exit to DSF 17895 | -2/Research | Entered DSF 17944 | -2/DSF | Additional patrols routed to DSF 18111 | -2/DSF | Discovered new exit (range 14) 18141 | -2/DSF | Entered Access 18141 | -1/Access | Evolved 2 slots: Utility x2 18422 | -1/Access | Identified exit to Surface 18672 | -1/Access | Build established: Scavenger-Gladiator 18846 | -1/Access | Incoming investigation squad redirected 19099 | -1/Access | Crushed by falling debris 19213 | *** | Escaped! Last Messages --------------- 19106_ Welding Torch fried. 19107_ Acquired 24 matter. 19149_ ALERT: Potential suspicious activity detected, Programmers report to Access Zone 8G. 19160_ ALERT: Suspicious intruders detected, dispatching Specialist reinforcements to area. 19161_ Connecting with Terminal... 19161_ Identified Adv. System Shield. 19163_ Connecting with Terminal... >>Open(Door) Sealed Barrier opened. 19166_ The Access Shell folds into the floor. 19172_ Discarded System Shield. 19173_ Discarded Adv. System Shield. 19188_ Sealed Heavy Doors breached. 19209_ Discarded Adv. Terrain Scan Processor. 19210_ Dropped Microactuators. [Achievement: On My Own Terms] [Achievement: CQB] Map ----- +----------------------------------------------------+ | # + # ????? ?#??????????????????????? | | # # # ? ?? ??? ???????????????????? | | # " # #? ?? ? ???? ???????????????????? | | # """ # # ? ? ?????????????????????????? | | # """ # # ? ? ? #?#????????????????????? | | # " # + ### #?? ?????????????? | | # # # ?###?+?#???????????????? | | # # + ? ?? ?+? ? ?????????????? | | ##########" # ?? #?### ? ??????????????? | | ########### ##############???#? #? ???????????? | | # ####?##??##?###?#? ? ??????????????? | | # ##??####### ? ? ?# o??## ? ?#???????? | | # #####??##?# ?# ## ?????????? | | # #########?# +? ??#?? # ??????? | | + ########### ? ####?#? ? #???????? | | # ####?#####? ? ? ####?#?? ? ?? ?????? | | # ###?####### ###?###? ? # ?????? | | ########### ##?############?##????######?? ?????? | | ?###?###### ####?#######?#?#?#########?#? ???? | | ?##?#?##### ####### ###########?#####??## ????? ? | | ??##?#?#### """T""" "???? ? ?? ???? | | #??##?#??## """ """ """" BB ? #??? ???? | | ?#####?##?# = "?""?BB ?#?+????? | | ? ??? ## !=/ ""?? ?? ? ? ?? | | ? ?? ? ## *!=/ ""? ? ?? ? ??? | | ??? ? ? ##u @=/ """"? ? ? ? ????? | | ??? ? ## / ""?" ? ? ?? ???? | | ? ? ? ## "??" BB #???????? | | ? ? ? ## """??BB ?? ? ? ? ??? | | ?? ?? ?## """" ? ?#??? ? ?? | | ????? ??# ####### ###########??#?###?## ??????? | | ??? ? ## ?##??####?####?########??#### ? ???? | | ??? ?Y# ?####?###########?##?###?###? ?????? | | ?????? ? ## #?###?####?####??###???#??#??? ? ???? | | ? ? ? ?## ?####??##?########?#?##??##?# ?????? | | ???#??#?### ###??##?##### ? ###??##???? ??????? | | ???????##?# ?? ??? ?? ?#?#?###?##? ?????? | | ????? ?? ? ??? ? ?w ? ? ???"????? | | ?????????? ?? ??? ? ? ? ?? ???#?###??#???????? | | ????????#?#?####?#?####### ? ? ####???##?????????? | | ?????????????###############??#?##????#??????????? | | ???????????#?#???##?##??#?##??##?##?#????????????? | | ?????????????????##?#?#####???#???#?#????????????? | | ???????????????????##?##?#?#???#?????????????????? | | ???????????????????#?????????????????????????????? | | ?????????????????????????????????????????????????? | | ?????????????????????????????????????????????????? | | ?????????????????????????????????????????????????? | | ?????????????????????????????????????????????????? | | ?????????????????????????????????????????????????? | +----------------------------------------------------+ Best States ------------- Heat Dissipation 59 Energy Generation 53 Energy Capacity 710 Matter Stores 300 Matter Capacity 300 Sight Range 16 Robot Scan Range 15 Terrain Scan Range 20 Terrain Scan Density 210 ECM Strength 2 Jamming Range 16 Corruption Block 33 Armor Coverage 450 Resistance: EM 50 Melee Speed Boost 20 Phase Shifting 10 Evasion (%) 92 Melee Accuracy 8 Core Analysis 8 Recoil Reduction 5 Offensive Hacking 28 Defensive Hacking 24 Authchip Count 1 Item Schematics ----------------- Combat Drone Bay | -7/Data Miner | Free Lgt. Regenerative Plating | -7/Data Miner | Free Cld. Cesium-ion Thruster | -7/Data Miner | Free Thermal Defense Suite | -7/Data Miner | Free Imp. Heavy Machine Gun | -7/Data Miner | Free Nuclear Pulse Array | -7/Data Miner | Free Imp. Thermal Shield | -7/Data Miner | Free Imp. Remote Datajack | -7/Data Miner | Free Hcp. Storage Unit | -6/Factory | Hacked Power Sword | -6/Factory | Scanalyzed Actuator Array | -5/Extension | Hacked Robot Schematics ------------------ S-27 Virus | -7/Data Miner | Free G-47 Trooper | -7/Data Miner | Free G-50 Soldier | -7/Data Miner | Free B-48 Gladiator | -7/Data Miner | Free Y-54 Guardian | -7/Data Miner | Free R-10 Processor | -7/Data Miner | Free B-60 Warrior | -7/Data Miner | Free Fabricated ------------ Actuator Array | x2 | -3/Research Repaired ---------- Great Axe | 16% | -7/Factory Plasma Lance | 12% | -6/Factory Power Sword | 99% | -6/Factory | Broken Studied --------- Carbon-fiber Leg | -7/Factory | Hacked Great Axe | -7/Factory | Hacked Wheel | -6/Factory | Hacked Arm. Huge Wheel | -6/Factory | Hacked Power Sword | -5/Factory | Hacked Imp. Carbon-fiber Leg | -5/Factory | Hacked Alien Tech Used ----------------- Core Expander Achievements -------------- CQB On My Own Terms Challenges ------------ None Game ------ Seed WardroneProtonNanovents Manual? 0 Play Time 03:37:58 Cumulative 412.8 hours Start 2026.06.30 @ 15:32:41 End 2026.06.30 @ 20:04:38 Sessions 1 Manual Loads 0 Difficulty Rogue Special Mode None Game No. 375 Rogue 375 Adventurer 0 Explorer 0 Win Type 0 Total 11 Types 7/0/2/1/0/0/0/0/0/1 Lore% 61 Gallery% 67 Achievement% 63 Wizard Run 0 Options --------- Layout 1 ASCII 0 Keyboard 0 Movement Mouse Keybinds 0 Fullscreen 2 Font 24/Smallcaps Map View 50x35 Zoom Use 9% Tactical HUD 1 Map Filters NONE Filters NONE Steam 1 RUN: 8904a445-353c-4459-b164-3df82130ebbe